bitfinex/quotes_ETHUSD_20240917
["timestamp","ask_amount","ask_price","bid_price","bid_amount"]
[1726572665055,4.31597,2317.0,2316.7,0.62802159]
[1726572665192,4.31597,2317.0,2316.5,5.22470889]
[1726572665491,4.31597,2317.0,2316.6,2.49959635]
[1726572665691,4.31597,2317.0,2316.7,1.62785691]
[1726572665928,4.31597,2317.0,2316.6,1.49975703]
[1726572666146,4.31611,2316.9,2316.7,0.99983795]
[1726572666452,6.62577,2316.6,2316.4,1.49899544]
[1726572666660,5.86709211,2316.5,2316.3,1.49918457]
[1726572666821,5.86709211,2316.5,2316.1,3.03512341]
[1726572667163,4.31706,2316.4,2316.2,0.99949624]
[1726572667662,5.86712211,2316.5,2316.2,0.99949624]
[1726572667864,6.79372,2316.4,2316.1,1.49918457]
[1726572669337,6.79372,2316.4,2316.1,2.49849073]
[1726572669668,6.79372,2316.4,2316.1,1.498958]
[1726572669959,6.79372,2316.4,2316.1,2.49826406]
[1726572670457,6.79372,2316.4,2316.0,10.35264983]
[1726572670617,6.79372,2316.4,2316.1,0.9992535]
[1726572671947,4.31728,2316.3,2316.1,0.9992535]
[1726572672871,4.31741,2316.2,2316.1,0.9992535]
[1726572673044,4.31761,2316.1,2315.9,1.498958]
[1726572673233,4.3176,2316.1,2315.8,2.40681689]
[1726572673432,8.63536,2316.1,2315.9,0.99926061]
[1726572673633,4.3176,2316.1,2315.9,0.99926061]
[1726572674334,4.3176,2316.1,2315.8,2.40681689]
[1726572674335,4.3174,2316.3,2315.8,6.72529461]
[1726572674636,4.31724,2316.3,2315.9,8.35278212]
[1726572674832,4.31724,2316.3,2316.0,2.49884228]
[1726572675037,4.31724,2316.3,2315.9,11.67114381]
[1726572675282,4.31724,2316.3,2316.0,2.4987911]
[1726572675478,4.31724,2316.3,2315.9,11.67114381]
[1726572675636,4.31724,2316.3,2316.0,0.9994802]
[1726572678378,4.31724,2316.3,2316.0,1.49930572]
[1726572678934,4.31724,2316.3,2316.1,0.99953613]
[1726572679154,4.31724,2316.3,2316.0,1.49931697]
[1726572679643,4.31724,2316.3,2316.1,0.99957108]
[1726572679845,4.31724,2316.3,2316.0,1.49931697]
[1726572680144,6.61193,2316.4,2316.0,5.81708697]
[1726572680346,4.31675,2316.6,2316.2,4.31728]
[1726572680557,2.3654,2316.5,2316.2,4.31728]
[1726572680754,2.3654,2316.5,2316.1,6.72474586]
[1726572680755,6.68227,2316.5,2316.1,6.72474586]
[1726572680988,4.31706,2316.4,2316.2,0.99950826]
[1726572681352,4.31706,2316.4,2316.1,1.49931697]
[1726572681614,4.31706,2316.4,2316.2,0.99953358]
[1726572684103,4.31706,2316.4,2316.1,1.49931703]
[1726572684312,4.31706,2316.4,2316.2,0.99954481]
[1726572684904,4.31692,2316.5,2316.2,0.99954481]
[1726572685105,4.31692,2316.5,2316.2,1.49931703]
[1726572685366,8.63386,2316.5,2316.2,1.49931703]
[1726572686097,4.31677,2316.6,2316.2,1.49931703]
[1726572686299,4.31692,2316.5,2316.2,1.49931703]
[1726572687020,8.63356,2316.6,2316.2,5.81665703]
[1726572687196,4.31677,2316.6,2316.2,5.81665703]
[1726572687710,6.66198,2316.7,2316.3,5.31667871]
[1726572687890,6.66198,2316.7,2316.3,4.31712]
[1726572688778,6.66198,2316.7,2316.3,5.81643703]
[1726572688979,6.66198,2316.7,2316.3,5.81645012]
[1726572689896,4.31648,2316.7,2316.3,5.81645012]
[1726572690097,4.31648,2316.7,2316.4,0.99954353]
[1726572690299,4.31648,2316.7,2316.3,5.81645012]
[1726572690519,4.31648,2316.7,2316.4,0.99956689]
[1726572690736,4.31648,2316.7,2316.3,5.81645012]
[1726572691486,2.428,2316.6,2316.3,5.81645012]
[1726572691683,6.74468,2316.6,2316.3,1.49933012]
[1726572692126,6.74468,2316.6,2316.3,2.49895736]
[1726572692427,6.74468,2316.6,2316.3,1.49933012]
[1726572692869,6.74468,2316.6,2316.2,5.81670012]
[1726572693120,6.74468,2316.6,2316.3,0.99969921]
[1726572693319,6.74468,2316.6,2316.2,5.22522889]
[1726572693631,6.74468,2316.6,2316.3,0.99979048]
[1726572693812,6.74468,2316.6,2316.3,1.49967165]
[1726572694003,4.31668,2316.6,2316.3,1.49967165]
[1726572695594,4.31668,2316.6,2316.4,0.99986291]
[1726572695795,4.31668,2316.6,2316.3,1.49967165]
[1726572696227,6.60645,2316.5,2316.3,1.49967165]
[1726572696526,2.2896,2316.5,2316.3,1.49967165]
[1726572698224,4.31674,2316.6,2316.4,1.00004239]
[1726572698424,4.31674,2316.6,2316.3,1.50006602]
[1726572698630,4.31674,2316.6,2316.4,1.00004385]
[1726572698788,4.31674,2316.6,2316.3,1.50006493]
[1726572698989,4.31674,2316.6,2316.4,1.00004184]
[1726572699189,4.31674,2316.6,2316.3,1.50006276]
[1726572699395,4.31674,2316.6,2316.4,1.00010895]
[1726572699604,4.31674,2316.6,2316.3,1.5001616]
[1726572699810,4.31674,2316.6,2316.4,1.00011313]
[1726572700132,4.31674,2316.6,2316.3,1.50015709]
[1726572700331,4.31674,2316.6,2316.4,1.00018576]
[1726572700566,4.31674,2316.6,2316.3,1.500291]
[1726572700865,4.31674,2316.6,2316.4,1.00019408]
[1726572701025,4.31674,2316.6,2316.3,1.5002861]
[1726572701225,4.31674,2316.6,2316.4,1.00018911]
[1726572701453,4.31674,2316.6,2316.3,1.50040591]
[1726572701766,2.264,2316.5,2316.4,1.00027115]
[1726572702264,6.58085,2316.5,2316.4,1.00027115]
[1726572703630,6.58085,2316.5,2316.4,1.00306174]
[1726572704730,6.58085,2316.5,2316.4,2.50824655]
[1726572706077,2.264,2316.5,2316.4,2.50824655]
[1726572706569,4.31674,2316.6,2316.4,2.50824655]
[1726572706744,4.31674,2316.6,2316.3,0.90785889]
[1726572706943,4.31674,2316.6,2316.4,2.50900456]
[1726572707259,6.67022,2316.7,2316.3,5.22503889]
[1726572707434,4.31667,2316.6,2316.4,3.41677512]
[1726572707636,4.31667,2316.6,2316.5,2.50891623]
[1726572707971,4.31667,2316.6,2316.5,1.00356649]
[1726572708274,6.67022,2316.7,2316.5,1.00356649]
[1726572708444,10.98681,2316.7,2316.4,0.90785889]
[1726572708631,10.98681,2316.7,2316.5,1.00419622]
[1726572708969,6.67022,2316.7,2316.4,0.90785889]
[1726572709177,6.67022,2316.7,2316.5,2.51046708]
[1726572709333,6.67022,2316.7,2316.4,0.90785889]
[1726572709532,6.67022,2316.7,2316.5,2.51045873]
[1726572709763,6.67022,2316.7,2316.4,0.90785889]
[1726572710070,6.67022,2316.7,2316.5,2.51047587]
[1726572710273,6.67022,2316.7,2316.4,0.90785889]
[1726572710462,6.67022,2316.7,2316.5,2.5104626]
[1726572710638,6.67022,2316.7,2316.3,5.22499889]
[1726572710862,6.67022,2316.7,2316.4,3.41835822]
[1726572711070,6.67022,2316.7,2316.5,2.51049933]
[1726572711371,6.67022,2316.7,2316.4,0.90785889]
[1726572711531,6.67022,2316.7,2316.5,2.51082576]
[1726572711732,4.31668,2316.6,2316.4,0.90785889]
[1726572711974,4.31668,2316.6,2316.5,1.00433654]
[1726572712290,4.31668,2316.6,2316.5,2.51109411]
[1726572712644,10.18235095,2316.6,2316.5,1.00433654]
[1726572712848,12.43715095,2316.6,2316.5,1.00433654]
[1726572713264,12.43715095,2316.6,2316.3,0.90785889]
[1726572713265,4.31701,2316.5,2316.3,0.90785889]
[1726572713574,4.31701,2316.5,2316.4,2.5153048]
[1726572714677,4.31701,2316.5,2316.4,3.42316369]
[1726572715040,6.57148,2316.6,2316.4,3.42316369]
[1726572715235,6.599,2316.8,2316.5,2.5153048]
[1726572715433,6.59844,2317.1,2316.6,3.42304586]
[1726572715662,4.31603,2317.0,2316.7,3.42304586]
[1726572715860,4.31603,2317.0,2316.8,2.51518697]
[1726572716070,4.31603,2317.0,2316.7,0.90785889]
[1726572716375,10.90847,2317.3,2316.8,7.73908455]
[1726572716545,10.90847,2317.3,2316.9,3.42280455]
[1726572716874,4.31557,2317.2,2317.0,2.51494566]
[1726572717076,4.31557,2317.2,2316.9,0.90785889]
[1726572717236,6.59292,2317.3,2317.0,1.00567787]
[1726572717436,6.59292,2317.3,2316.8,5.22413889]
[1726572717665,6.59292,2317.3,2316.9,2.51331325]
[1726572717973,6.59292,2317.3,2317.0,1.00532908]
[1726572718175,6.59292,2317.3,2316.8,5.22413889]
[1726572718340,6.59292,2317.3,2316.9,2.51266071]
[1726572718531,4.31556,2317.2,2316.8,5.22413889]
[1726572718735,10.9084,2317.3,2316.9,2.51266225]
[1726572718973,10.90836,2317.3,2317.0,1.0050649]
[1726572719158,10.90836,2317.3,2316.9,4.31609]
[1726572719370,10.90836,2317.3,2317.0,1.00488124]
[1726572719563,6.59288,2317.3,2316.9,4.31609]
[1726572719886,6.59286,2317.3,2317.0,2.51220053]
[1726572720056,6.59286,2317.3,2317.0,1.50730188]
[1726572720262,6.59286,2317.3,2316.9,5.22394889]
[1726572720443,6.59286,2317.3,2317.0,2.51239715]
[1726572720444,10.90835,2317.3,2317.0,2.51239715]
[1726572720802,10.90835,2317.3,2316.9,0.90785889]
[1726572721089,10.90835,2317.3,2317.0,2.51242028]
[1726572721258,10.90835,2317.3,2317.0,1.50745217]
[1726572721259,6.59286,2317.3,2317.0,1.50745217]
[1726572721459,4.31556,2317.2,2317.0,1.50749266]
[1726572721859,4.31556,2317.2,2316.8,5.22405889]
[1726572722076,4.31556,2317.2,2316.9,2.51193651]
[1726572722304,12.67929095,2317.1,2317.0,1.0047746]
[1726572722588,4.31598,2317.0,2316.8,1.50709096]
[1726572723351,4.31598,2317.0,2316.7,0.90785889]
[1726572723552,4.31598,2317.0,2316.8,2.51192037]
[1726572723883,4.31536,2317.3,2316.9,2.51161444]
[1726572724081,4.31536,2317.3,2317.0,2.5115767]
[1726572724396,4.31536,2317.3,2317.0,1.50691302]
[1726572724596,0.0383372,2317.4,2317.0,1.50691302]
[1726572724798,0.0383372,2317.4,2317.1,2.51130247]
[1726572724799,4.3535272,2317.4,2317.1,2.51130247]
[1726572725095,6.81428,2317.3,2317.0,1.50662934]
[1726572725766,6.81428,2317.3,2317.0,1.5064285]
[1726572726095,6.81428,2317.3,2316.9,4.31599]
[1726572726256,6.81428,2317.3,2317.0,1.00428907]
[1726572726591,6.81428,2317.3,2317.0,1.0042888]
[1726572726805,6.81428,2317.3,2316.9,5.22384889]
[1726572727111,6.81428,2317.3,2317.0,1.0042863]
[1726572727281,6.81428,2317.3,2316.9,5.82217454]
[1726572727600,6.81428,2317.3,2317.0,1.00411809]
[1726572729704,6.81428,2317.3,2316.9,5.82217454]
[1726572730876,6.81428,2317.3,2317.0,1.00377146]
[1726572731205,6.81428,2317.3,2316.9,4.31599]
[1726572736009,2.4989,2317.3,2317.0,4.3159]
[1726572736388,2.4989,2317.3,2317.0,4.31585]
[1726572736789,4.3535672,2317.4,2317.0,4.31585]
[1726572737689,4.3535672,2317.4,2317.0,8.63163]
[1726572737912,4.3535672,2317.4,2317.0,4.31578]
[1726572739382,2.4233,2317.2,2316.9,4.31598]
[1726572739584,2.4233,2317.2,2317.0,4.31587]
[1726572746740,2.4233,2317.2,2317.1,0.7254384]
[1726572746902,2.4233,2317.2,2317.0,4.31587]
[1726572750913,2.4233,2317.2,2316.8,2.41351544]
[1726572751258,2.4233,2317.2,2316.5,2.41351544]
[1726572751259,2.2506,2316.9,2316.5,2.41351544]
[1726572751564,2.2506,2316.9,2316.6,6.82715008]
[1726572751858,2.2506,2316.9,2316.7,1.00498049]
[1726572752216,2.2506,2316.9,2316.6,1.50565655]
[1726572752429,2.2506,2316.9,2316.7,1.00509461]
[1726572753262,2.2506,2316.9,2316.6,1.50565655]
[1726572753439,2.2506,2316.9,2316.7,1.00526274]
[1726572754360,2.2506,2316.9,2316.6,1.50565655]
[1726572754533,2.2506,2316.9,2316.7,1.00540361]
[1726572754919,6.56672,2316.9,2316.7,1.00540361]
[1726572755429,6.56672,2316.9,2316.5,5.22461889]
[1726572755630,6.56672,2316.9,2316.6,3.42176706]
[1726572755827,6.56672,2316.9,2316.7,1.00556031]
[1726572756036,6.56672,2316.9,2316.7,1.00557561]
[1726572756233,6.56672,2316.9,2316.6,2.41622175]
[1726572756438,2.2506,2316.9,2316.7,2.51405966]
[1726572756617,2.2506,2316.9,2316.8,1.00570164]
[1726572758232,2.2506,2316.9,2316.8,2.5147858]
[1726572758434,2.2506,2316.9,2316.8,1.00570164]
[1726572758637,2.2506,2316.9,2316.8,1.00606352]
[1726572758966,2.2506,2316.9,2316.8,2.51515881]
[1726572760324,2.2506,2316.9,2316.8,3.14312562]
[1726572760523,2.2506,2316.9,2316.8,3.14448712]
[1726572761235,2.2506,2316.9,2316.8,4.05234601]
[1726572761966,2.2506,2316.9,2316.8,3.14448712]
[1726572762264,2.2506,2316.9,2316.8,4.05234601]
[1726572762466,2.2506,2316.9,2316.8,3.14448712]
[1726572762762,2.2506,2316.9,2316.8,2.51652031]
[1726572762967,2.2506,2316.9,2316.8,3.14449027]
[1726572763467,2.4735,2317.2,2316.8,4.05234916]
[1726572763670,2.4735,2317.2,2316.9,7.46060027]
[1726572763829,2.4735,2317.2,2317.0,3.14449027]
[1726572764023,2.4735,2317.2,2317.1,1.00660812]
[1726572764760,2.4735,2317.2,2317.1,2.51729368]
[1726572765140,2.4735,2317.2,2317.1,2.51729581]
[1726572765365,2.4735,2317.2,2317.1,2.51726492]
[1726572765924,2.4735,2317.2,2317.1,1.00660812]
[1726572766427,6.78905,2317.2,2317.1,1.00660812]
[1726572766641,6.78905,2317.2,2316.9,0.90785889]
[1726572766642,4.31555,2317.2,2317.0,1.51076463]
[1726572766828,6.76826,2317.1,2316.9,0.90785889]
[1726572767048,6.76826,2317.1,2317.0,1.00718165]
[1726572767231,6.76826,2317.1,2316.9,0.62794761]
[1726572767426,6.76826,2317.1,2316.8,0.90785889]
[1726572767649,6.76826,2317.1,2316.9,3.1459658]
[1726572767870,6.76826,2317.1,2316.8,0.90785889]
[1726572768100,2.4525,2317.1,2316.9,3.14592578]
[1726572768381,2.4525,2317.1,2317.0,1.00718631]
[1726572768540,2.4525,2317.1,2317.0,2.51793209]
[1726572768866,6.76555,2317.2,2317.0,3.14587314]
[1726572769035,6.76555,2317.2,2317.1,1.00714849]
[1726572770725,6.76555,2317.2,2316.9,0.90785889]
[1726572770962,6.76555,2317.2,2317.0,2.5179745]
[1726572771166,6.76555,2317.2,2316.9,0.90785889]
[1726572771369,2.452,2317.1,2317.0,2.51797256]
[1726572771726,2.452,2317.1,2317.0,1.00718902]
[1726572771941,6.76773,2317.1,2317.0,1.00718902]
[1726572772147,6.76773,2317.1,2317.0,2.51800049]
[1726572775097,6.76773,2317.1,2317.0,2.51807606]
[1726572775270,6.76773,2317.1,2317.0,1.00723042]
[1726572775627,6.76773,2317.1,2317.0,2.51807478]
[1726572775965,6.76773,2317.1,2317.0,1.00723042]
[1726572776160,2.452,2317.1,2317.0,1.00723042]
[1726572776386,2.452,2317.1,2317.0,2.51807316]
[1726572776684,6.76773,2317.1,2317.0,3.14600068]
[1726572776845,6.76773,2317.1,2317.0,2.51807316]
[1726572777248,4.31573,2317.1,2317.0,2.51807316]
[1726572779287,4.31573,2317.1,2317.0,3.14600643]
[1726572779514,4.31573,2317.1,2317.0,2.51807316]
[1726572779983,4.31573,2317.1,2317.0,2.51820096]
[1726572780186,4.31573,2317.1,2317.0,1.00728038]
[1726572780381,4.31573,2317.1,2316.8,0.90785889]
[1726572780586,4.31573,2317.1,2316.9,3.14622937]
[1726572780789,4.31573,2317.1,2316.8,0.90785889]
[1726572780997,4.31573,2317.1,2316.9,3.14621781]
[1726572781177,4.31573,2317.1,2317.0,1.0073041]
[1726572781379,5.178858,2317.1,2317.0,1.0073041]
[1726572781578,5.178858,2317.1,2316.8,0.90785889]
[1726572781579,4.31573,2317.1,2316.8,0.90785889]
[1726572781779,1.54893095,2317.2,2316.9,2.51827685]
[1726572782012,4.31611,2316.9,2316.8,0.90785889]
[1726572782221,4.31611,2316.9,2316.8,1.00733387]
[1726572782222,4.91340383,2316.9,2316.8,1.00733387]
[1726572782375,4.31629,2316.8,2316.7,0.62801245]
[1726572782583,4.31629,2316.8,2316.7,2.51843885]
[1726572782786,4.31629,2316.8,2316.7,3.14646558]
[1726572784709,4.31629,2316.8,2316.7,3.14646759]
[1726572785276,8.63258,2316.8,2316.7,3.1464729]
[1726572785518,12.57741095,2316.8,2316.7,1.00737554]
[1726572786020,4.31648,2316.7,2316.5,0.90785889]
[1726572786188,4.31648,2316.7,2316.6,2.51825088]
[1726572787625,4.31648,2316.7,2316.6,1.00730035]
[1726572787994,4.31648,2316.7,2316.6,2.51800736]
[1726572788188,4.31648,2316.7,2316.6,1.0071378]
[1726572788189,8.63313,2316.7,2316.6,1.0071378]
[1726572788734,4.31648,2316.7,2316.6,1.0071378]
[1726572793108,4.31648,2316.7,2316.6,1.0069105]
[1726572796684,4.31648,2316.7,2316.6,2.51780477]
[1726572797191,4.31648,2316.7,2316.6,1.0069105]
[1726572797794,4.31648,2316.7,2316.6,1.00721837]
[1726572800019,4.31631,2316.8,2316.6,2.51787953]
[1726572800344,4.31604,2317.0,2316.7,2.51770102]
[1726572800545,4.31621,2316.9,2316.8,1.00708172]
[1726572801029,4.31621,2316.9,2316.6,0.90785889]
[1726572801189,4.31621,2316.9,2316.7,2.5176496]
[1726572801387,4.31621,2316.9,2316.6,0.90785889]
[1726572801591,4.31621,2316.9,2316.7,2.51766582]
[1726572801816,4.31621,2316.9,2316.6,0.90785889]
[1726572802034,4.31621,2316.9,2316.7,2.51760805]
[1726572802229,4.31621,2316.9,2316.6,0.90785889]
[1726572802412,4.31621,2316.9,2316.7,2.51767357]
[1726572802615,4.31621,2316.9,2316.6,0.90785889]
[1726572802821,4.31621,2316.9,2316.7,2.51759376]
[1726572803020,4.31621,2316.9,2316.6,0.90785889]
[1726572803220,4.31621,2316.9,2316.7,2.51764971]
[1726572803423,4.31621,2316.9,2316.6,0.90785889]
[1726572803598,4.31621,2316.9,2316.7,2.51759136]
[1726572803797,4.31621,2316.9,2316.6,0.90785889]
[1726572803996,4.31621,2316.9,2316.7,2.51759136]
[1726572804206,4.31621,2316.9,2316.6,0.90785889]
[1726572804438,2.369,2316.8,2316.7,2.51764863]
[1726572805024,8.63244,2316.9,2316.7,2.51764863]
[1726572805193,4.31597,2317.0,2316.8,1.00705025]
[1726572805399,4.31574,2317.1,2316.7,2.13852485]
[1726572805599,4.3536672,2317.4,2316.9,1.54893095]
[1726572805836,4.3535972,2317.4,2317.0,7.46134541]
[1726572806147,0.0383372,2317.4,2317.1,3.14545062]
[1726572806296,0.0383372,2317.4,2317.2,2.51753325]
[1726572806496,4.3535172,2317.4,2317.3,1.00674342]
[1726572806708,4.3535172,2317.4,2317.2,1.51007602]
[1726572806939,4.3535172,2317.4,2317.0,0.90785889]
[1726572807154,4.3535172,2317.4,2317.1,2.51687606]
[1726572807445,4.3535172,2317.4,2317.0,0.90785889]
[1726572807601,4.3535172,2317.4,2317.1,2.51755498]
[1726572807804,4.3535172,2317.4,2317.0,0.90785889]
[1726572808138,4.3535172,2317.4,2317.1,2.5175542]
[1726572808318,4.3535172,2317.4,2317.0,0.90785889]
[1726572808635,4.3535172,2317.4,2317.1,2.51737801]
[1726572808834,4.3535172,2317.4,2317.1,1.51042681]
[1726572809821,0.0383372,2317.4,2317.2,1.00680627]
[1726572810040,0.0383372,2317.4,2317.2,4.31545]
[1726572810352,0.0383372,2317.4,2317.3,2.51655954]
[1726572810508,0.0383372,2317.4,2317.3,3.42441843]
[1726572810949,0.0383372,2317.4,2317.3,1.00663131]
[1726572811135,0.0383372,2317.4,2317.3,2.51655954]
[1726572811339,0.0383372,2317.4,2317.3,6.83191954]
[1726572811512,0.0383372,2317.4,2317.3,7.73977843]
[1726572811713,0.0383372,2317.4,2317.3,3.42441843]
[1726572811918,0.0383372,2317.4,2317.3,2.51655954]
[1726572812218,0.0383372,2317.4,2317.3,2.51613575]
[1726572813125,0.0383372,2317.4,2317.3,6.83149575]
[1726572815120,0.0383372,2317.4,2317.3,5.3218143]
[1726572815322,0.0383372,2317.4,2317.3,9.6371743]
[1726572816978,0.0383372,2317.4,2317.3,9.63607345]
[1726572818388,6.79748,2318.0,2317.5,4.31498]
[1726572818550,4.31425,2317.9,2317.5,4.31498]
[1726572818743,4.31425,2317.9,2317.5,8.62988]
[1726572819241,6.79739,2318.0,2317.6,4.31475]
[1726572823874,11.11154,2318.0,2317.6,4.31475]
[1726572824080,6.79739,2318.0,2317.6,4.31475]
[1726572828752,11.11163,2318.0,2317.6,4.31475]
[1726572829366,4.31426,2317.9,2317.6,4.31475]
[1726572830195,4.31469,2317.7,2317.3,4.31528]
[1726572830422,4.31451,2317.8,2317.3,4.31528]
[1726572830715,4.31436,2317.9,2317.5,4.31492]
[1726572831769,4.31467,2317.7,2317.3,4.31529]
[1726572832001,4.31508,2317.5,2317.2,3.0]
[1726572832329,6.66458,2317.6,2317.2,7.31554]
[1726572832496,4.315,2317.5,2317.2,3.0]
[1726572832702,2.3497,2317.6,2317.1,3.0]
[1726572833003,4.31503,2317.5,2317.1,7.31564]
[1726572834384,6.6646,2317.6,2317.2,4.31552]
[1726572835000,4.3149,2317.6,2317.2,5.86445095]
[1726572835798,4.31454,2317.8,2317.3,4.31528]
[1726572835947,4.31445,2317.8,2317.4,4.3151]
[1726572839054,4.31487,2317.6,2317.2,4.31547]
[1726572839252,4.31471,2317.7,2317.1,7.99135477]
[1726572839253,6.72701,2317.5,2317.1,11.63129]
[1726572839407,6.72701,2317.5,2317.1,7.31572]
[1726572839612,5.86338095,2317.8,2317.3,4.31526]
[1726572839613,4.31471,2317.7,2317.3,4.31526]
[1726572840420,2.412,2317.8,2317.4,4.31515]
[1726572840723,4.31433,2317.9,2317.5,4.31499]
[1726572840953,6.67784,2318.0,2317.6,4.31477]
[1726572841125,6.67784,2318.0,2317.5,4.31499]
[1726572841455,4.31427,2317.9,2317.5,4.31489]
[1726572841744,4.31427,2317.9,2317.5,8.6298]
[1726572842351,4.31427,2317.9,2317.5,4.31489]
[1726572842851,2.3637,2318.0,2317.7,4.3146]
[1726572843215,4.3522672,2318.1,2317.7,4.3146]
[1726572843413,4.3522672,2318.1,2317.7,4.31453]
[1726572844645,4.31413,2318.0,2317.6,4.31478]
[1726572844816,2.3138,2317.9,2317.6,4.31478]
[1726572845536,6.62808,2317.9,2317.5,4.31483]
[1726572845710,6.62808,2317.9,2317.5,8.62973]
[1726572845915,6.62808,2317.9,2317.5,4.31483]
[1726572848153,6.62808,2317.9,2317.6,1.01136804]
[1726572849061,10.94249,2317.9,2317.5,4.31483]
[1726572849215,10.94249,2317.9,2317.6,1.01171958]
[1726572849638,4.31444,2317.8,2317.6,1.01171958]
[1726572850049,4.31444,2317.8,2317.6,1.51760799]
[1726572850249,4.31444,2317.8,2317.6,1.51819863]
[1726572851256,6.62809,2317.9,2317.7,2.53084749]
[1726572851460,6.62809,2317.9,2317.6,0.90785889]
[1726572851756,6.62809,2317.9,2317.7,2.53164297]
[1726572851918,6.62809,2317.9,2317.6,0.90785889]
[1726572852123,6.62809,2317.9,2317.7,2.53164312]
[1726572852321,6.62809,2317.9,2317.6,0.90785889]
[1726572852525,6.62809,2317.9,2317.7,2.53198798]
[1726572852844,6.62809,2317.9,2317.6,0.90785889]
[1726572853048,6.62809,2317.9,2317.7,2.53199531]
[1726572853234,6.62809,2317.9,2317.6,0.90785889]
[1726572853435,6.62809,2317.9,2317.7,2.53232218]
[1726572853762,10.94249,2317.9,2317.6,0.90785889]
[1726572854063,6.62809,2317.9,2317.7,2.53233013]
[1726572854222,10.94252,2317.9,2317.8,1.01293205]
[1726572854427,10.94252,2317.9,2317.6,0.90785889]
[1726572854428,6.62809,2317.9,2317.6,0.90785889]
[1726572854661,6.62809,2317.9,2317.7,2.53280221]
[1726572854870,6.62809,2317.9,2317.6,0.90785889]
[1726572855024,6.62809,2317.9,2317.7,2.53280292]
[1726572855225,6.62809,2317.9,2317.8,1.01312117]
[1726572855421,6.72645,2317.8,2317.7,1.52007807]
[1726572855625,6.72662,2317.7,2317.5,0.90785889]
[1726572855871,6.7268,2317.6,2317.5,0.90785889]
[1726572856067,6.7268,2317.6,2317.5,3.44141751]
[1726572857329,11.0416,2317.6,2317.5,2.53355862]
[1726572857558,18.16436604,2317.6,2317.5,1.01342345]
[1726572857738,18.16436604,2317.6,2317.2,3.37052169]
[1726572857739,6.62486,2317.3,2317.2,0.90785889]
[1726572858043,10.94037,2317.3,2317.2,2.5343324]
[1726572858277,10.94037,2317.3,2317.2,1.01373296]
[1726572858765,10.94037,2317.3,2317.0,0.90675735]
[1726572858766,4.31573,2317.1,2317.0,0.90675735]
[1726572859062,4.31573,2317.1,2317.0,3.44126295]
[1726572859364,4.31573,2317.1,2317.0,3.4410316]
[1726572860239,4.31573,2317.1,2316.9,0.9065393]
[1726572860444,4.31573,2317.1,2317.0,3.43975038]
[1726572860859,4.31573,2317.1,2317.0,2.53321108]
[1726572861168,4.31573,2317.1,2317.0,3.43975038]
[1726572861465,4.31573,2317.1,2317.0,2.53321108]
[1726572863771,4.31573,2317.1,2317.0,2.53171681]
[1726572864274,4.31573,2317.1,2317.0,1.01268672]
[1726572864568,11.08606,2317.1,2317.0,1.01267324]
[1726572864772,11.08606,2317.1,2316.9,1.51902803]
[1726572864773,4.31592,2317.0,2316.9,1.51902803]
[1726572864976,4.31592,2317.0,2316.9,2.53171314]
[1726572866042,4.31592,2317.0,2316.9,1.01268511]
[1726572867380,4.31611,2316.9,2316.8,1.51866175]
[1726572867535,4.31611,2316.9,2316.8,1.01207112]
[1726572867737,4.31611,2316.9,2316.7,1.51866175]
[1726572867738,11.01578,2316.8,2316.7,1.51866175]
[1726572867937,4.31648,2316.7,2316.6,0.37119893]
[1726572869543,8.63296,2316.7,2316.6,0.37119893]
[1726572869888,10.95096,2316.7,2316.6,0.37119893]
[1726572870090,6.63448,2316.7,2316.2,9.74258105]
[1726572870247,6.63448,2316.7,2316.3,1.01150483]
[1726572870445,4.31674,2316.6,2316.3,1.01150483]
[1726572872190,4.31674,2316.6,2316.1,5.2241093]
[1726572872387,4.31674,2316.6,2316.2,1.01195427]
[1726572873373,4.31674,2316.6,2316.1,4.31757]
[1726572873560,4.31674,2316.6,2316.2,1.01170087]
[1726572874891,2.3125,2316.5,2316.2,1.01170087]
[1726572875883,2.3125,2316.5,2316.1,4.31757]
[1726572876086,2.3125,2316.5,2316.2,1.01146375]
[1726572876285,6.62939,2316.5,2316.1,4.31757]
[1726572876593,6.62939,2316.5,2316.2,1.01125378]
[1726572876953,6.62939,2316.5,2316.1,4.31757]
[1726572885386,2.3125,2316.5,2316.2,4.3174]
[1726572888695,2.3125,2316.5,2316.3,4.31714]
[1726572889055,2.3125,2316.5,2316.3,4.3171]
[1726572889257,2.4232,2316.7,2316.4,4.31696]
[1726572895598,7.47,2317.1,2316.3,1.54893095]
[1726572895877,6.79911,2316.9,2316.5,4.31676]
[1726572896486,2.483,2316.9,2316.5,4.31674]
[1726572896794,4.3165,2316.7,2316.4,3.0]
[1726572896994,4.31658,2316.7,2316.3,4.31719]
[1726572898625,4.31658,2316.7,2316.4,1.01246488]
[1726572899127,6.7993,2316.8,2316.5,4.31685]
[1726572899336,6.7993,2316.8,2316.4,4.317]
[1726572900120,6.63198,2316.7,2316.4,4.317]
[1726572900335,2.3155,2316.6,2316.3,6.741911]
[1726572900532,2.3155,2316.6,2316.4,1.01323207]
[1726572900850,2.2822,2316.5,2316.2,2.424731]
[1726572901032,2.2822,2316.5,2316.3,1.01325448]
[1726572901201,2.2822,2316.5,2316.2,2.424731]
[1726572901404,2.2822,2316.5,2316.3,1.01372978]
[1726572901589,6.59906,2316.5,2316.3,1.01372978]
[1726572902308,6.59906,2316.5,2316.3,1.5181917]
[1726572902714,2.2822,2316.5,2316.3,1.5181917]
[1726572902918,1.54893095,2316.9,2316.4,2.5322695]
[1726572902919,4.31642,2316.8,2316.4,2.5322695]
[1726572903136,4.31638,2316.8,2316.4,5.8351217]
[1726572903288,4.31638,2316.8,2316.5,1.01449677]
[1726572903522,4.31638,2316.8,2316.4,4.31693]
[1726572903840,4.31638,2316.8,2316.5,2.53628846]
[1726572904052,4.31638,2316.8,2316.5,1.5217682]
[1726572904249,4.31638,2316.8,2316.4,5.2234693]
[1726572904456,4.31638,2316.8,2316.5,2.53670431]
[1726572904651,2.4033,2316.7,2316.5,1.52204076]
[1726572904841,6.72006,2316.6,2316.3,0.9065393]
[1726572905165,6.72015,2316.5,2316.4,2.53681796]
[1726572905526,2.4033,2316.5,2316.4,2.53681796]
[1726572906361,2.4033,2316.5,2316.4,2.53751325]